bitfinex-derivatives/quotes_BTCF0:USTF0_20260127
["timestamp","ask_amount","ask_price","bid_price","bid_amount"]
[1769539786247,0.01031246,88027.0,88012.0,0.011377]
[1769539786545,0.01031246,88027.0,88013.0,0.002588]
[1769539788249,0.0112332,88026.0,88005.0,0.1024]
[1769539788552,0.0112332,88024.0,88006.0,0.013966]
[1769539788855,0.0008632,88023.0,88006.0,0.002588]
[1769539789354,0.0008632,88023.0,88010.0,0.011377]
[1769539789544,0.0008632,88023.0,88011.0,0.002588]
[1769539790454,0.01208446,88023.0,88006.0,0.011378]
[1769539790654,0.01208446,88023.0,88007.0,0.002588]
[1769539791757,0.01208446,88023.0,88006.0,0.011378]
[1769539791953,0.01208446,88023.0,87995.0,0.0906182]
[1769539792163,0.01124511,88021.0,88005.0,0.011378]
[1769539792354,0.01124511,88018.0,87998.0,0.002588]
[1769539792556,0.01210831,88017.0,88001.0,0.011378]
[1769539792862,0.01115899,88013.0,88001.0,0.002588]
[1769539793153,0.01115899,88008.0,87988.0,0.0906182]
[1769539793356,0.01115899,88002.0,87981.0,0.1019992]
[1769539793559,0.01115899,87999.0,87981.0,0.011381]
[1769539793854,0.01202219,87998.0,87978.0,0.011381]
[1769539794058,0.011379,87995.0,87975.0,0.104988]
[1769539794258,0.01115899,87992.0,87975.0,0.1024]
[1769539794459,0.01117373,87990.0,87975.0,0.1024]
[1769539794663,0.01117373,87988.0,87975.0,0.1024]
[1769539794855,0.01203693,87987.0,87975.0,0.104988]
[1769539795055,0.01203693,87987.0,87976.0,0.011382]
[1769539795266,0.01203693,87987.0,87977.0,0.002588]
[1769539795267,0.0008632,87987.0,87977.0,0.002588]
[1769539800258,0.01192552,87987.0,87977.0,0.002588]
[1769539800448,0.01106232,88004.0,87978.0,0.002588]
[1769539800653,0.0008632,87996.0,87987.0,0.01138]
[1769539800859,0.0008632,87996.0,87989.0,0.01138]
[1769539801564,0.0008632,87996.0,87988.0,0.002588]
[1769539801750,0.0008632,87996.0,87989.0,0.002588]
[1769539801953,0.0008632,87996.0,87989.0,0.013968]
[1769539803154,0.0008632,87996.0,87989.0,0.002588]
[1769539803355,0.0008632,87996.0,87975.0,0.1930182]
[1769539803356,0.01184122,87996.0,87984.0,0.01138]
[1769539803565,0.0008632,87996.0,87985.0,0.002588]
[1769539803951,0.01097802,88002.0,87993.0,0.011379]
[1769539804154,0.01097802,88021.0,87994.0,0.00258838]
[1769539804558,0.01097802,88021.0,88006.0,0.011378]
[1769539804761,0.01097802,88021.0,88008.0,0.011377]
[1769539805066,0.01097802,88021.0,87991.0,0.0906182]
[1769539805067,0.01097802,88021.0,88009.0,0.00258838]
[1769539805265,0.01097802,88021.0,88010.0,0.00258838]
[1769539805963,0.01097802,88021.0,88010.0,0.01396538]
[1769539806168,0.1024,88020.0,88012.0,0.011377]
[1769539806369,0.00944926,88027.0,88017.0,0.011376]
[1769539806566,0.1024,88023.0,88018.0,0.00258838]
[1769539806859,0.1024,88023.0,88019.0,0.011376]
[1769539807056,0.1024,88023.0,88020.0,0.00258838]
[1769539807251,0.00944926,88027.0,88021.0,0.00086262]
[1769539807456,0.11443764,88027.0,88015.0,0.011376]
[1769539807760,0.11443764,88027.0,88016.0,0.00086262]
[1769539808264,0.01097877,88026.0,88012.0,0.011377]
[1769539808559,0.01356715,88026.0,88000.0,0.1024]
[1769539808764,0.0109749,88022.0,88000.0,0.1024]
[1769539808954,0.01356328,88021.0,88000.0,0.1024]
[1769539809261,0.0109749,88020.0,88004.0,0.011378]
[1769539809468,0.0109749,88018.0,88007.0,0.011378]
[1769539809661,0.00258838,88017.0,88000.0,0.113778]
[1769539809855,0.1024,88024.0,88000.0,0.113778]
[1769539810054,0.01356328,88023.0,88006.0,0.011378]
[1769539810254,0.01356328,88023.0,88008.0,0.011377]
[1769539810454,0.011376,88022.0,88008.0,0.011377]
[1769539810654,0.01327786,88021.0,88008.0,0.011377]
[1769539810856,0.01327786,88021.0,88000.0,0.1024]
[1769539810857,0.02206548,88020.0,88000.0,0.1024]
[1769539811062,0.01068948,88015.0,88001.0,0.011378]
[1769539811261,0.01068948,88015.0,88004.0,0.011378]
[1769539811262,0.00258838,88014.0,88004.0,0.011378]
[1769539811457,0.01327786,88014.0,88006.0,0.011378]
[1769539811660,0.01327786,88014.0,88003.0,0.011378]
[1769539812464,0.01327786,88014.0,88000.0,0.1024]
[1769539813158,0.00258838,88014.0,88000.0,0.1024]
[1769539813464,0.00258838,88014.0,88006.0,0.011378]
[1769539813664,0.01063033,88019.0,88010.0,0.011377]
[1769539813856,0.00258838,88018.0,88010.0,0.011377]
[1769539814161,0.11303033,88024.0,88016.0,0.011376]
[1769539814363,0.00258838,88024.0,88018.0,0.011376]
[1769539814665,0.10498838,88024.0,88018.0,0.011376]
[1769539815253,0.00258838,88024.0,88000.0,0.1024]
[1769539815452,0.00258838,88024.0,88013.0,0.011377]
[1769539815656,0.00944926,88027.0,88014.0,0.002588]
[1769539815967,0.01031246,88027.0,88014.0,0.002588]
[1769539816466,0.01031246,88027.0,88017.0,0.011376]
[1769539816664,0.01031246,88027.0,88018.0,0.002588]
[1769539818563,0.011375,88026.0,88011.0,0.011377]
[1769539818762,0.01069917,88023.0,88010.0,0.011377]
[1769539819065,0.0008632,88022.0,88014.0,0.011377]
[1769539819266,0.0008632,88022.0,88016.0,0.011376]
[1769539819865,0.0008632,88022.0,88013.0,0.011377]
[1769539820059,0.0008632,88022.0,88011.0,0.002588]
[1769539820470,0.0008632,88022.0,88015.0,0.011376]
[1769539820766,0.0008632,88022.0,88016.0,0.011376]
[1769539820956,0.0008632,88022.0,88016.0,0.002588]
[1769539821359,0.0008632,88022.0,88017.0,0.011376]
[1769539823372,0.0008632,88022.0,88017.0,0.013964]
[1769539823572,0.00944926,88027.0,88017.0,0.013964]
[1769539823773,0.00944926,88027.0,88017.0,0.002588]
[1769539824272,0.01031246,88027.0,88017.0,0.002588]
[1769539825474,0.01031246,88027.0,88017.0,0.013964]
[1769539825675,0.01031246,88027.0,88018.0,0.011376]
[1769539825975,0.01031246,88027.0,88018.0,0.013964]
[1769539826176,0.01031246,88027.0,88019.0,0.011376]
[1769539826370,0.01031246,88027.0,88019.0,0.002588]
[1769539826777,0.01031246,88027.0,88016.0,0.011376]
[1769539827076,0.01031246,88027.0,88016.0,0.013964]
[1769539828381,0.01031246,88027.0,88004.0,0.011378]
[1769539828581,0.01031246,88027.0,88005.0,0.002588]
[1769539828891,0.01079211,88019.0,88005.0,0.002588]
[1769539829081,0.0008632,88018.0,88005.0,0.002588]
[1769539829275,0.0008632,88018.0,88001.0,0.3902982]
[1769539829276,0.01165531,88018.0,88001.0,0.3902982]
[1769539829480,0.01165531,88018.0,88002.0,0.002588]
[1769539829676,0.01165531,88018.0,88001.0,0.0906182]
[1769539829989,0.01079211,88010.0,87994.0,0.011379]
[1769539830185,0.01079211,88008.0,87994.0,0.011379]
[1769539830389,0.0008632,88007.0,87994.0,0.011379]
[1769539830890,0.0008632,88007.0,87998.0,0.011379]
[1769539831090,0.0008632,88007.0,88000.0,0.011378]
[1769539831388,0.1024,88013.0,88000.0,0.011378]
[1769539831389,0.01065503,88014.0,88004.0,0.011378]
[1769539831585,0.1032632,88013.0,88004.0,0.013966]
[1769539832184,0.1032632,88013.0,88001.0,0.011378]
[1769539832390,0.1032632,88013.0,88003.0,0.011378]
[1769539832583,0.1032632,88013.0,88003.0,0.013966]
[1769539833184,0.1032632,88013.0,88003.0,0.002588]
[1769539833386,0.01049994,88012.0,87999.0,0.011379]
[1769539833582,0.0008632,88011.0,87999.0,0.011379]
[1769539833782,0.01136314,88011.0,87999.0,0.011379]
[1769539833983,0.01136314,88011.0,87996.0,0.011379]
[1769539834389,0.01136314,88011.0,87996.0,0.013967]
[1769539834696,0.01136314,88011.0,87998.0,0.011379]
[1769539834882,0.0008632,88011.0,87999.0,0.002588]
[1769539835079,0.0008632,88011.0,88003.0,0.011378]
[1769539835584,0.0008632,88011.0,88004.0,0.002588]
[1769539835986,0.0008632,88011.0,88004.0,0.013966]
[1769539836188,0.1024,88013.0,88008.0,0.011377]
[1769539836386,0.1024,88013.0,88009.0,0.002588]
[1769539836688,0.01054088,88022.0,88009.0,0.002588]
[1769539836896,0.41344361,88021.0,88009.0,0.002588]
[1769539837490,0.01054041,88020.0,88009.0,0.002588]
[1769539837784,0.01140361,88019.0,88009.0,0.002588]
[1769539839386,0.01057694,88013.0,87990.0,0.01138]
[1769539839588,0.0008632,88012.0,88006.0,0.011378]
[1769539839790,0.01057694,88020.0,88008.0,0.011377]
[1769539840288,0.01057694,88020.0,88008.0,0.01396538]
[1769539840997,0.02195294,88020.0,88008.0,0.00258838]
[1769539841387,0.0105605,88017.0,87991.0,0.01138]
[1769539841587,0.0105605,88017.0,87992.0,0.14675317]
[1769539841788,0.0105605,88017.0,87993.0,0.14934155]
[1769539841985,0.0105605,88017.0,88003.0,0.011378]
[1769539842189,0.0105605,88017.0,88004.0,0.00258838]
[1769539842398,0.011376,88016.0,88004.0,0.00258838]
[1769539842597,0.01058418,88015.0,88004.0,0.00258838]
[1769539843283,0.41262418,88021.0,88004.0,0.00258838]
[1769539843490,0.01058418,88020.0,88004.0,0.01396638]
[1769539845502,0.01058418,88020.0,88007.0,0.011378]
[1769539845799,0.01058418,88020.0,88008.0,0.00258838]
[1769539846802,0.011376,88019.0,88003.0,0.011378]
[1769539847101,0.01058682,88018.0,88003.0,0.01396638]
[1769539847697,0.01058682,88018.0,88005.0,0.011378]
[1769539847891,0.01058682,88018.0,88006.0,0.00258838]
[1769539850397,0.01059533,88012.0,87994.0,0.13594401]
[1769539850604,0.01059533,88012.0,88000.0,0.011378]
[1769539850805,0.01059533,88012.0,88001.0,0.00258838]
[1769539851006,0.01059533,88012.0,88002.0,0.011378]
[1769539851206,0.01059533,88012.0,88002.0,0.01396638]
[1769539851408,0.01059533,88012.0,88006.0,4e-05]
[1769539854817,0.01060937,88009.0,87994.0,0.13594401]
[1769539855006,0.01060937,88009.0,87996.0,0.011379]
[1769539855306,0.01060937,88009.0,87997.0,0.14963196]
[1769539855500,0.01060937,88009.0,87996.0,0.011379]
[1769539855700,0.01060937,88009.0,87997.0,0.14876339]
[1769539855913,0.01060937,88009.0,87998.0,0.011379]
[1769539856308,0.1024,88011.0,88001.0,0.011378]
[1769539856514,0.01060937,88010.0,88001.0,0.011378]
[1769539856706,0.01060937,88010.0,88003.0,0.011378]
[1769539857108,0.01060937,88010.0,88001.0,0.00258838]
[1769539857406,0.1024,88015.0,88006.0,0.011378]
[1769539858009,0.11299747,88015.0,88006.0,0.011378]
[1769539858410,0.11299747,88015.0,88003.0,0.011378]
[1769539858807,0.11299747,88015.0,88003.0,0.01396638]
[1769539859309,0.11299747,88015.0,88004.0,0.011378]
[1769539859509,0.01060221,88014.0,88004.0,0.011378]
[1769539860019,0.01060221,88013.0,88003.0,0.00258838]
[1769539860212,0.01060221,88013.0,88001.0,0.011378]
[1769539860513,0.01060221,88013.0,87999.0,0.011379]
[1769539860718,0.01060454,88009.0,88000.0,0.11910543]
[1769539861018,0.01060454,88009.0,87999.0,0.011379]
[1769539861216,0.01060454,88009.0,87999.0,0.00258838]
[1769539861407,0.113777,88015.0,88006.0,0.011378]
[1769539861408,0.00919415,88014.0,88006.0,0.011378]
[1769539861708,0.00919415,88019.0,88006.0,0.00258838]
[1769539861913,0.40208,88018.0,88011.0,0.011377]
[1769539862105,0.40208,88018.0,88008.0,0.011377]
[1769539862303,0.40208,88018.0,88010.0,0.011377]
[1769539862517,0.40208,88018.0,88010.0,0.01396538]
[1769539862908,0.01,88020.0,88011.0,0.00936853]
[1769539863107,0.011372,88051.0,88006.0,0.011378]
[1769539863108,0.40208,88030.0,88015.0,0.00936853]
[1769539863308,0.40208,88030.0,88016.0,0.01195691]
[1769539863510,0.00919415,88037.0,88023.0,0.011375]
[1769539863711,0.00919415,88037.0,88017.0,0.00936853]
[1769539863712,0.00919415,88039.0,88017.0,0.00936853]
[1769539863912,0.00919415,88034.0,88019.0,0.011376]
[1769539864112,0.00919415,88034.0,88021.0,0.011376]
[1769539864312,0.00919415,88034.0,88023.0,0.011375]
[1769539864514,0.011374,88037.0,88024.0,0.00258838]
[1769539864706,0.011374,88036.0,88024.0,0.00258838]
[1769539865020,0.00919415,88033.0,88024.0,0.00258838]
[1769539865525,0.011374,88037.0,88024.0,0.00258838]
[1769539865816,0.011374,88036.0,88024.0,0.00258838]
[1769539866114,0.02056815,88036.0,88024.0,0.00258838]
[1769539866522,0.00919415,88035.0,88024.0,0.00258838]
[1769539867417,0.00919415,88033.0,88024.0,0.00258838]
[1769539867620,0.00919415,88033.0,88018.0,0.011376]
[1769539867818,0.00919415,88033.0,88019.0,0.00258838]
[1769539868020,0.413453,88044.0,88019.0,0.00258838]
[1769539868021,0.00919415,88029.0,88019.0,0.00258838]
[1769539868222,0.00919415,88028.0,88016.0,0.1024]
[1769539868522,0.00919415,88026.0,88016.0,0.1024]
[1769539869019,0.00919415,88026.0,88016.0,0.10498838]
[1769539869222,0.00919415,88025.0,88016.0,0.1024]
[1769539869423,0.00919415,88021.0,88006.0,0.011378]
[1769539869622,0.00919415,88021.0,88007.0,0.01396638]
[1769539869828,0.00919415,88019.0,88006.0,0.011378]
[1769539870119,0.00919415,88019.0,88004.0,0.1024]
[1769539870120,0.00919415,88015.0,88004.0,0.1024]
[1769539870330,0.00919415,88010.0,87991.0,0.00936853]
[1769539870521,0.00919415,88010.0,87991.0,0.01195691]
[1769539870716,0.00919415,88010.0,88000.0,0.011378]
[1769539870916,0.00919415,88010.0,88001.0,0.00258838]
[1769539871116,0.11159415,88010.0,88001.0,0.00258838]
[1769539871316,0.00258838,88009.0,88000.0,0.011378]
[1769539871514,0.1024,88010.0,88006.0,0.011378]
[1769539871716,0.1024,88010.0,88006.0,0.00258838]
[1769539872111,0.1024,88010.0,88003.0,0.011378]
[1769539872321,0.1024,88010.0,88004.0,0.00258838]
[1769539873025,0.00919415,88020.0,88005.0,0.011378]
[1769539873220,0.00919415,88018.0,88006.0,0.00258838]
[1769539874120,0.00919415,88016.0,88006.0,0.00258838]
[1769539874427,0.011377,88010.0,87994.0,0.011379]
[1769539874729,0.011377,88010.0,87994.0,0.01396738]
[1769539874730,0.00919415,88009.0,87994.0,0.01396738]
[1769539874925,0.00919415,88009.0,87996.0,0.011379]
[1769539875125,0.00919415,88009.0,87997.0,0.00258838]
[1769539876640,0.00919415,88009.0,87998.0,0.011379]
[1769539876826,0.00919415,88009.0,87998.0,0.01396738]
[1769539879030,0.00919415,88009.0,87998.0,0.011379]
[1769539879225,0.113777,88011.0,87999.0,0.00258838]
[1769539879930,0.12297115,88011.0,87999.0,0.00258838]
[1769539880519,0.11159415,88011.0,87999.0,0.00258838]
[1769539880821,0.29964,88013.0,88000.0,0.00936853]
[1769539881025,0.1024,88011.0,88002.0,0.011378]
[1769539881324,0.1024,88011.0,88004.0,0.011378]
[1769539881524,0.1024,88011.0,88005.0,0.00258838]
[1769539881725,0.29964,88014.0,88006.0,0.00936853]
[1769539881925,0.1024,88018.0,88009.0,0.011377]
[1769539882124,0.00919415,88027.0,88011.0,0.02074553]
[1769539882439,0.413415,88026.0,88012.0,0.00258838]
[1769539882631,0.00919415,88027.0,88012.0,0.00258838]
[1769539882935,0.1024,88028.0,88016.0,0.011376]
[1769539883128,0.1024,88027.0,88017.0,0.00258838]
[1769539885530,0.1024,88030.0,88018.0,0.00987399]
[1769539885730,0.1024,88030.0,88019.0,0.00258838]
[1769539886333,0.11212503,88030.0,88019.0,0.00258838]
[1769539886733,0.011375,88029.0,88019.0,0.00258838]
[1769539886940,0.00972503,88029.0,88019.0,0.00258838]
[1769539887841,0.02110003,88029.0,88019.0,0.00258838]
[1769539889531,0.00972503,88029.0,88011.0,0.011377]
[1769539889739,0.00972503,88029.0,88012.0,0.00258838]
[1769539890540,0.011376,88022.0,88012.0,0.00258838]
[1769539890745,0.00972503,88021.0,88012.0,0.00258838]
[1769539891741,0.00972503,88021.0,88012.0,0.01396538]
[1769539893345,0.00972503,88016.0,88000.0,0.12630536]
[1769539893645,0.00972503,88010.0,88000.0,0.03855528]
[1769539894633,0.00972503,88010.0,88000.0,0.04993328]
[1769539895543,0.00972503,88010.0,88000.0,0.03855528]
[1769539896946,0.00972503,88010.0,88000.0,0.04993328]
[1769539897746,0.00972503,88016.0,88000.0,0.04842927]
[1769539897946,0.1024,88017.0,88001.0,0.00987399]
[1769539898138,0.1024,88017.0,88003.0,0.00987399]
[1769539898339,0.1024,88017.0,88000.0,0.0359669]
[1769539898340,0.1024,88017.0,88005.0,0.00987399]
[1769539898552,0.1024,88019.0,88010.0,0.011377]
[1769539898738,0.23785811,88041.0,88011.0,0.00258838]
[1769539898739,0.00972503,88027.0,88011.0,0.00258838]
[1769539898939,0.41176503,88026.0,88011.0,0.00258838]
[1769539899153,0.02110103,88021.0,88011.0,0.00258838]
[1769539900146,0.011376,88016.0,88003.0,0.02125199]
[1769539900353,0.00972503,88015.0,88004.0,0.00258838]
[1769539900851,0.00972503,88013.0,88000.0,0.0359669]
[1769539901051,0.00972503,88013.0,88001.0,0.00258838]
[1769539902147,0.00972503,88012.0,88000.0,0.0359669]
[1769539902355,0.00972503,88007.0,87996.0,0.09033846]
[1769539902551,0.00972503,88007.0,87996.0,0.00258838]
[1769539902752,5.984e-05,88003.0,87995.0,0.1024]
[1769539903056,5.984e-05,88003.0,87996.0,0.00258838]
[1769539904253,5.984e-05,88009.0,87996.0,0.00258838]
[1769539904454,5.984e-05,88007.0,87996.0,0.00258838]
[1769539905055,0.01143784,88007.0,87996.0,0.00258838]
[1769539905557,0.011377,88011.0,87996.0,0.01396738]
[1769539905758,5.448e-05,88013.0,88000.0,0.011378]
[1769539906053,5.448e-05,88012.0,88001.0,0.00258838]
[1769539906256,0.1024,88015.0,88001.0,0.01396638]
[1769539906958,0.011377,88014.0,88001.0,0.00258838]
[1769539910059,0.011377,88013.0,88001.0,0.00258838]
[1769539910358,0.011377,88009.0,88001.0,0.00258838]
[1769539912570,0.011377,88012.0,88001.0,0.00258838]
[1769539913259,0.1024,88015.0,88001.0,0.00258838]
[1769539914372,0.011377,88012.0,88001.0,0.00258838]
[1769539915577,0.1024,88023.0,88001.0,0.00258838]
[1769539915879,0.11770604,88020.0,88002.0,0.01005642]
[1769539916065,0.11770604,88020.0,88003.0,0.00258838]
[1769539916268,0.011377,88011.0,88003.0,0.00258838]
[1769539916675,0.1024,88023.0,87993.0,0.00795522]
[1769539916676,0.01230886,88010.0,87993.0,0.00795522]
[1769539916980,0.00972048,88007.0,87994.0,0.00086262]
[1769539917180,0.011379,87996.0,87982.0,0.10171946]
[1769539917387,0.00258838,87995.0,87988.0,0.01138]
[1769539917571,0.00972048,87999.0,87989.0,0.00086262]
[1769539917572,0.02109948,87999.0,87989.0,0.00086262]
[1769539917767,0.00258838,87998.0,87989.0,0.00086262]
[1769539917969,0.00258838,87998.0,87980.0,0.2080445]
[1769539918175,0.00258838,87998.0,87984.0,0.00086262]
[1769539918482,0.00258838,87998.0,87984.0,0.01224362]
[1769539918675,0.00258838,87998.0,87980.0,0.00914574]
[1769539918676,0.00972048,87996.0,87980.0,0.00914574]
[1769539918877,0.00972048,87994.0,87981.0,0.00086262]
[1769539919177,0.00258838,87994.0,87984.0,0.01138]
[1769539919383,0.00258838,87994.0,87985.0,0.02138836]
[1769539919565,0.00258838,87994.0,87985.0,0.01000836]
[1769539920177,0.00972048,87999.0,87986.0,0.01138]
[1769539920471,0.011379,87998.0,87987.0,0.00086262]
[1769539920674,0.00258838,87997.0,87987.0,0.00086262]
[1769539922282,0.00258838,87997.0,87987.0,0.01000836]
[1769539922586,0.1024,88002.0,87989.0,0.00914574]
[1769539922778,0.10498838,88002.0,87991.0,0.00914574]
[1769539922978,0.00972048,88010.0,87995.0,0.011379]
[1769539923277,0.1024,88009.0,87996.0,0.00086262]
[1769539923482,0.10498838,88009.0,87996.0,0.00086262]
[1769539923872,0.00258838,88009.0,87996.0,0.00086262]
[1769539924073,0.00972048,88008.0,87996.0,6.2e-07]
[1769539924273,0.011378,88001.0,87996.0,6.2e-07]
[1769539924979,0.011378,88001.0,87990.0,0.00914574]
[1769539925187,0.011379,87996.0,87982.0,0.00914574]
[1769539925374,0.011379,87996.0,87984.0,0.00914574]
[1769539925681,0.011379,87999.0,87986.0,0.00914574]
[1769539926382,0.00258838,88000.0,87990.0,0.00914574]
[1769539926576,0.011378,88004.0,87990.0,0.00914574]
[1769539926893,0.01396638,88004.0,87991.0,0.01138]
[1769539927077,0.011378,88007.0,87993.0,0.011379]
[1769539927276,0.11470886,88009.0,87994.0,0.00914574]
[1769539927581,0.11470886,88009.0,87997.0,0.011379]
[1769539928272,0.29968,88015.0,87994.0,0.00914574]
[1769539928273,0.011377,88013.0,87999.0,0.12908504]
[1769539928474,0.1024,88012.0,87999.0,0.13823078]
[1769539928681,0.1024,88012.0,87999.0,0.02052474]
[1769539929585,0.1024,88012.0,88001.0,0.011378]
[1769539929783,0.00567972,88033.0,87999.0,0.00914574]
[1769539929784,0.00972048,88027.0,88006.0,0.00914574]
[1769539929982,0.1024,88023.0,88011.0,0.011377]
[1769539930181,0.1024,88023.0,88013.0,0.011377]
[1769539930384,0.113776,88023.0,88011.0,0.00914574]
[1769539930682,0.11636438,88023.0,88011.0,0.00914574]
[1769539930882,0.011376,88021.0,88011.0,0.00914574]
[1769539931074,0.00258838,88021.0,88011.0,0.00914574]
[1769539931476,0.00258838,88021.0,88007.0,0.011378]
[1769539932689,0.00258838,88021.0,88009.0,0.011377]
[1769539932986,0.00258838,88021.0,88007.0,0.011378]
[1769539934089,0.011376,88020.0,88006.0,0.00914574]
[1769539934276,0.011376,88018.0,88006.0,0.00914574]
[1769539934478,0.00258838,88017.0,88006.0,0.00914574]
[1769539936485,0.00258838,88017.0,88001.0,0.00914574]
[1769539936786,0.00972048,88004.0,87994.0,0.1024]
[1769539936983,0.11770604,88011.0,87998.0,0.011379]
[1769539937192,0.00258838,88010.0,87998.0,0.011379]
[1769539937573,0.011377,88009.0,87994.0,0.11154574]
[1769539937773,0.00258838,88008.0,87995.0,0.011379]
[1769539937976,0.00258838,88008.0,87994.0,0.11154574]
[1769539938388,0.00972048,88004.0,87994.0,0.1024]
[1769539938589,0.011378,88005.0,87994.0,0.1024]
[1769539938590,0.01230886,88003.0,87994.0,0.1024]
[1769539938787,0.01230886,88003.0,87984.0,0.09033846]
[1769539938788,0.011378,88001.0,87988.0,0.01138]
[1769539938983,0.01230886,88003.0,87985.0,0.00914574]
[1769539938984,0.00258838,88000.0,87987.0,0.01138]
[1769539939790,0.00258838,88000.0,87985.0,0.00914574]
[1769539939993,0.01396738,88000.0,87986.0,0.01138]
[1769539940991,0.00258838,88000.0,87988.0,0.01138]
[1769539942685,0.00258838,88000.0,87989.0,0.00914574]
[1769539942886,0.00258838,88000.0,87990.0,0.01138]
[1769539943692,0.00258838,88000.0,87991.0,0.00928878]
[1769539943893,0.1024,88023.0,88002.0,0.00928878]
[1769539944194,0.1024,88023.0,87988.0,0.01138]
[1769539944195,0.00258838,88018.0,88005.0,0.00928878]
[1769539944496,0.06273719,88027.0,88000.0,0.11770604]
[1769539944497,0.011375,88029.0,88011.0,0.02057217]
[1769539944791,0.00258838,88026.0,88015.0,0.00919517]
[1769539944977,0.10498838,88026.0,88015.0,0.00919517]
[1769539945777,0.10498838,88026.0,88009.0,0.00919517]
[1769539945985,0.10498838,88026.0,88000.0,0.0359669]
[1769539945986,0.00981022,88022.0,88001.0,0.02057317]
[1769539946194,0.00981022,88019.0,88004.0,0.011378]
[1769539946491,0.0123986,88018.0,88004.0,0.011378]
[1769539946793,0.0123986,88018.0,88006.0,0.011378]
[1769539948185,0.00981022,88017.0,88002.0,0.011378]
[1769539948378,0.0123986,88016.0,88002.0,0.011378]
[1769539948888,0.00981022,88015.0,88002.0,0.011378]
[1769539949081,0.00981022,88013.0,88002.0,0.011378]
[1769539949282,0.00258838,88012.0,88002.0,0.011378]
[1769539950100,0.00981022,88007.0,88000.0,0.0359669]
[1769539950286,0.00981022,88005.0,87990.0,0.02057517]
[1769539950491,0.0123986,88004.0,87990.0,0.02057517]
[1769539951198,0.0123986,88004.0,87992.0,0.011379]
[1769539952199,0.0123986,88004.0,87990.0,0.00919517]
[1769539952396,0.0123986,88004.0,87991.0,0.01138]
[1769539953298,0.00258838,88004.0,87995.0,0.011379]
[1769539953689,0.00258838,88004.0,87992.0,0.011379]
[1769539956404,0.01396638,88004.0,87990.0,0.00919517]
[1769539957305,0.02118822,88001.0,87988.0,0.11378]
[1769539957506,0.00258838,88000.0,87988.0,0.11378]
[1769539957697,0.00258838,88000.0,87995.0,0.09033846]
[1769539958100,0.00258838,88000.0,87994.0,0.09033846]
[1769539958405,0.00258838,88000.0,87995.0,0.09033846]
[1769539960912,0.00981022,87999.0,87995.0,4.6e-07]
[1769539961205,0.1024,88004.0,87997.0,0.02057417]
[1769539961404,0.1024,88004.0,87997.0,0.00919517]
[1769539961606,0.1024,88004.0,87997.0,0.01178355]
[1769539961905,0.1024,88004.0,87997.0,0.00258838]
[1769539962500,0.10326258,88004.0,87997.0,0.00258838]
[1769539965308,0.00981022,88011.0,87999.0,0.011379]
[1769539965509,0.011376,88020.0,88000.0,0.00258838]
[1769539965510,0.00981022,88009.0,88000.0,0.00258838]
[1769539965704,0.01223958,88008.0,88000.0,0.00258838]
[1769539965904,0.00981022,88004.0,87985.0,0.17878357]
[1769539966105,0.0123986,88003.0,87991.0,0.01138]
[1769539966712,0.011379,87997.0,87984.0,0.17878357]
[1769539966901,0.00981022,87995.0,87979.0,0.1695884]
[1769539967100,0.00981022,87992.0,87979.0,0.011381]
[1769539967406,0.00981022,87990.0,87976.0,0.1024]
[1769539967597,0.00981022,87990.0,87966.0,0.53638367]
[1769539967598,0.00981022,87986.0,87970.0,0.1695884]
[1769539967801,0.01138,87985.0,87971.0,0.00919517]
[1769539968008,0.1024,87984.0,87971.0,0.00919517]
[1769539968209,0.10498838,87984.0,87971.0,0.00919517]
[1769539969305,0.011381,87983.0,87971.0,0.00919517]
[1769539969519,0.00258838,87982.0,87971.0,0.00919517]
[1769539969708,0.12762911,87981.0,87966.0,0.02056313]
[1769539970012,0.00981022,87978.0,87966.0,0.01136796]
[1769539970203,0.011382,87976.0,87966.0,0.01136796]
[1769539970416,0.011382,87974.0,87966.0,0.01136796]
[1769539970707,0.00258838,87973.0,87966.0,0.01136796]
[1769539970905,0.011382,87972.0,87959.0,0.02654029]
[1769539971111,0.00258838,87971.0,87959.0,0.02654029]
[1769539971817,0.00258838,87971.0,87960.0,0.011384]
[1769539973113,0.00258838,87971.0,87960.0,0.02057917]
[1769539973802,0.00258838,87971.0,87961.0,0.00919517]
[1769539974001,0.011382,87977.0,87963.0,0.00919517]
[1769539974205,0.00258838,87977.0,87965.0,0.00978592]
[1769539974416,0.00258838,87977.0,87967.0,0.011383]
[1769539975123,0.00258838,87977.0,87965.0,0.00978592]
[1769539975314,0.00258838,87977.0,87960.0,0.11781889]
[1769539975315,0.00258838,87977.0,87966.0,0.02116892]
[1769539975510,0.011381,87980.0,87967.0,0.00978592]
[1769539975714,0.01396938,87980.0,87967.0,0.00978592]
[1769539976920,0.011379,87993.0,87979.0,0.00978592]
[1769539977116,0.40212,87992.0,87979.0,0.00978592]
[1769539977312,0.40470838,87992.0,87980.0,0.011381]
[1769539977511,0.0628385,88004.0,87966.0,0.011383]
[1769539977512,0.1024,88000.0,87985.0,0.00978592]
[1769539977819,0.011379,87997.0,87985.0,0.00978592]
[1769539978013,0.011379,87993.0,87978.0,0.011381]
[1769539978213,0.00258838,87992.0,87978.0,0.011381]
[1769539978610,0.00258838,87992.0,87973.0,0.00978592]
[1769539978611,0.0094477,87987.0,87973.0,0.011382]
[1769539978808,0.00258838,87986.0,87973.0,0.011382]
[1769539980521,0.00258838,87986.0,87977.0,0.011381]
[1769539981823,0.00258838,87986.0,87974.0,0.011382]
[1769539982223,0.10244,87989.0,87974.0,0.00978592]
[1769539982524,0.10244,87989.0,87982.0,0.00978592]
[1769539982720,0.10244,87990.0,87982.0,0.00978592]
[1769539982918,0.10244,87990.0,87983.0,0.011381]
[1769539983120,0.10244,87990.0,87983.0,0.02116692]
[1769539983616,0.0094477,88010.0,87988.0,0.00978592]
[1769539983922,0.0094477,88010.0,87970.0,0.011382]
[1769539983923,0.011376,88019.0,88002.0,0.011378]
[1769539984121,0.01396438,88019.0,88004.0,0.011378]
[1769539984427,0.00258838,88019.0,88004.0,0.00978592]
[1769539984726,0.011376,88018.0,88004.0,0.00978592]
[1769539984920,0.011376,88016.0,88004.0,0.00978592]
[1769539985121,0.01396438,88016.0,88004.0,0.00978592]
[1769539985832,0.00258838,88016.0,88007.0,0.011378]
[1769539986023,0.10244,88020.0,88008.0,0.00978592]
[1769539986332,0.10502838,88020.0,88008.0,0.00978592]
[1769539986531,0.10502838,88020.0,88009.0,0.011377]
[1769539986721,0.10502838,88020.0,88008.0,0.00978592]
[1769539986920,0.10502838,88020.0,88008.0,0.02116292]